bitfinex-derivatives/quotes_SOLF0:USTF0_20250428
["timestamp","ask_amount","ask_price","bid_price","bid_amount"]
[1745811400846,4.13,148.46,148.39,25.86]
[1745811401152,6.7342,148.45,148.39,25.86]
[1745811401350,25.86,148.47,148.39,25.86]
[1745811401551,25.86,148.47,148.4,11.54422928]
[1745811402051,25.86,148.5,148.43,11.54422928]
[1745811402253,29.7976,148.53,148.46,18.27752928]
[1745811402451,25.86,148.56,148.49,11.54422928]
[1745811402652,1.9952,148.59,148.49,37.40422928]
[1745811402843,1.9952,148.59,148.52,11.54422928]
[1745811403048,88.80265593,148.6,148.53,25.86]
[1745811403446,6.7281,148.59,148.53,25.86]
[1745811403753,25.86,148.6,148.53,25.86]
[1745811404357,6.7278,148.59,148.53,25.86]
[1745811404658,25.86,148.6,148.53,25.86]
[1745811404860,6.729,148.57,148.5,32.5918]
[1745811405055,25.86,148.6,148.5,32.5918]
[1745811405354,25.86,148.6,148.5,25.86]
[1745811405555,25.86,148.6,148.5,44.6182969]
[1745811406258,6.7283,148.58,148.51,6.7313]
[1745811406454,25.86,148.6,148.5,44.6182969]
[1745811406957,6.7283,148.58,148.51,6.731]
[1745811407157,25.86,148.6,148.5,25.86]
[1745811408465,25.86,148.6,148.52,18.7582969]
[1745811408659,25.86,148.6,148.5,25.86]
[1745811408855,6.7285,148.58,148.5,25.86]
[1745811409365,6.7285,148.58,148.52,6.7309]
[1745811409671,6.7288,148.57,148.5,25.86]
[1745811409967,18.7582969,148.59,148.5,6.7318]
[1745811410361,6.7296,148.55,148.49,18.7582969]
[1745811410560,44.6182969,148.56,148.48,25.86]
[1745811410760,30.0141,148.55,148.44,4.0033]
[1745811410957,18.7582969,148.53,148.44,27.8553]
[1745811411255,30.0141,148.55,148.44,27.8553]
[1745811411464,30.0141,148.55,148.45,18.7582969]
[1745811411962,18.7582969,148.53,148.44,27.8553]
[1745811412158,18.7582969,148.53,148.44,25.86]
[1745811412359,18.7582969,148.5,148.41,25.86]
[1745811412559,25.86,148.49,148.41,25.86]
[1745811413362,25.86,148.49,148.42,18.7582969]
[1745811413563,25.86,148.52,148.42,18.7582969]
[1745811413862,25.86,148.52,148.41,25.86]
[1745811414461,25.86,148.52,148.43,6.7346]
[1745811415364,25.86,148.52,148.41,25.86]
[1745811415561,4.1541,148.55,148.46,18.7582969]
[1745811415764,4.1541,148.55,148.46,44.6182969]
[1745811416164,4.1541,148.55,148.51,6.7313]
[1745811416563,1.9546,148.59,148.5,25.86]
[1745811416862,62.94265593,148.58,148.52,18.7582969]
[1745811417956,62.94265593,148.58,148.54,6.7297]
[1745811418162,62.94265593,148.58,148.52,18.7582969]
[1745811418363,8.7701,148.59,148.52,18.7582969]
[1745811418764,8.7701,148.59,148.54,6.73]
[1745811418965,6.7282,148.58,148.52,18.7582969]
[1745811419166,2.0423,148.59,148.52,18.7582969]
[1745811419463,2.0423,148.59,148.53,6.7304]
[1745811419666,2.0423,148.59,148.52,18.7582969]
[1745811420265,8.7702,148.59,148.54,6.7299]
[1745811420464,8.7702,148.59,148.52,18.7582969]
[1745811420465,2.0423,148.59,148.52,18.7582969]
[1745811420664,6.7291,148.56,148.51,6.7309]
[1745811421066,2.0423,148.59,148.5,25.86]
[1745811421266,6.7299,148.55,148.5,25.86]
[1745811421563,2.0117,148.61,148.52,18.7582969]
[1745811421764,6.7269,148.61,148.56,6.7287]
[1745811421962,1.9231,148.67,148.55,25.86]
[1745811422164,27.7831,148.67,148.58,18.7582969]
[1745811422362,6.7249,148.66,148.61,6.7265]
[1745811422870,6.7251,148.65,148.61,6.7265]
[1745811423068,6.7251,148.65,148.59,32.5873]
[1745811423368,6.7246,148.66,148.59,25.86]
[1745811423870,27.7831,148.67,148.59,25.86]
[1745811424064,6.7262,148.63,148.59,25.86]
[1745811424264,27.7831,148.67,148.59,25.86]
[1745811424462,6.7271,148.61,148.59,25.86]
[1745811424666,27.7831,148.67,148.56,2.0426]
[1745811424866,18.7582969,148.65,148.56,2.0426]
[1745811425063,6.7268,148.61,148.56,2.0426]
[1745811425269,18.7582969,148.65,148.56,2.0426]
[1745811425470,39.31912477,148.67,148.57,6.7286]
[1745811425673,39.31912477,148.67,148.56,2.0426]
[1745811425872,11.53602477,148.63,148.55,25.86]
[1745811426170,6.7281,148.59,148.55,25.86]
[1745811426570,25.86,148.62,148.55,25.86]
[1745811426772,6.7287,148.57,148.55,25.86]
[1745811427168,6.7287,148.57,148.52,44.02692477]
[1745811427471,6.7287,148.57,148.52,32.4909]
[1745811427666,6.7292,148.56,148.52,32.4909]
[1745811427871,13.62772477,148.6,148.52,25.76]
[1745811428171,2.0331,148.61,148.52,37.29602477]
[1745811428371,25.76,148.65,148.58,11.53602477]
[1745811429267,6.726,148.63,148.58,18.26422477]
[1745811429471,6.726,148.63,148.58,11.53602477]
[1745811430171,25.76,148.65,148.58,11.53602477]
[1745811430371,25.76,148.65,148.59,1.9748]
[1745811430569,2.0088,148.67,148.59,1.9748]
[1745811430872,25.76,148.68,148.61,11.53602477]
[1745811431072,25.76,148.68,148.61,25.76]
[1745811431374,25.76,148.68,148.6,11.53602477]
[1745811431571,32.4837,148.68,148.62,6.726]
[1745811431773,25.76,148.71,148.63,37.29602477]
[1745811432168,6.7237,148.68,148.63,37.29602477]
[1745811432370,6.7237,148.68,148.63,25.76]
[1745811432671,25.76,148.71,148.63,25.76]
[1745811432864,11.53602477,148.69,148.6,25.76]
[1745811433472,11.53602477,148.69,148.6,32.4873]
[1745811433668,25.76,148.71,148.61,11.53602477]
[1745811433973,6.7242,148.67,148.63,6.7256]
[1745811434272,6.7242,148.67,148.61,11.53602477]
[1745811434569,6.7251,148.65,148.6,25.76]
[1745811434972,25.76,148.7,148.61,11.53602477]
[1745811435272,6.7219,148.72,148.64,11.53602477]
[1745811435469,3.8629,148.75,148.65,25.76]
[1745811435971,11.53602477,148.74,148.64,25.76]
[1745811436170,25.76,148.73,148.64,32.4853]
[1745811436364,25.76,148.73,148.64,25.76]
[1745811436767,6.7226,148.71,148.64,25.76]
[1745811437167,25.76,148.73,148.64,32.4854]
[1745811437369,6.7236,148.69,148.64,25.76]
[1745811437565,11.53602477,148.68,148.59,1.9748]
[1745811437771,13.50582477,148.68,148.58,32.4878]
[1745811437971,6.7258,148.64,148.58,32.4878]
[1745811438170,1.9731,148.67,148.58,32.4878]
[1745811438171,37.29602477,148.65,148.58,25.76]
[1745811438572,11.53602477,148.65,148.55,27.694]
[1745811439174,11.53602477,148.65,148.55,25.76]
[1745811439377,27.7331,148.67,148.57,11.53602477]
[1745811439673,6.7267,148.62,148.58,2.0822]
[1745811439972,27.7331,148.67,148.58,2.0822]
[1745811440971,25.76,148.7,148.62,11.53602477]
[1745811441167,547.26265593,148.73,148.62,11.53602477]
[1745811441168,3.9076,148.72,148.63,25.76]
[1745811441365,6.7228,148.7,148.65,6.7247]
[1745811441775,3.9076,148.72,148.63,25.76]
[1745811442975,3.9076,148.72,148.59,497.79562477]
[1745811443176,3.9076,148.72,148.61,25.76]
[1745811443773,25.76,148.73,148.65,11.53602477]
[1745811443975,25.76,148.73,148.66,27.7311]
[1745811444176,32.4815,148.73,148.68,6.7233]
[1745811444477,25.76,148.73,148.66,27.7311]
[1745811444874,2.0943,148.76,148.66,27.7311]
[1745811445275,6.7218,148.73,148.67,6.724]
[1745811445472,6.7218,148.73,148.66,27.7311]
[1745811445780,6.7218,148.73,148.68,6.7233]
[1745811446078,6.7211,148.74,148.66,27.7311]
[1745811446279,2.0943,148.76,148.68,11.53602477]
[1745811446571,2.0943,148.76,148.7,6.7225]
[1745811446779,2.0943,148.76,148.67,25.76]
[1745811447176,6.722,148.72,148.67,25.76]
[1745811447677,6.7215,148.73,148.68,6.7236]
[1745811448080,2.0943,148.76,148.67,37.29602477]
[1745811448279,6.7213,148.74,148.69,6.7231]
[1745811448879,6.7217,148.73,148.68,6.7235]
[1745811449279,2.0943,148.76,148.66,8.6956]
[1745811449579,2.0943,148.76,148.67,25.74]
[1745811449778,2.0943,148.76,148.67,37.27602477]
[1745811450382,8.8146,148.76,148.71,6.7219]
[1745811450581,8.8146,148.76,148.71,32.4619]
[1745811450885,2.0943,148.76,148.71,32.4619]
[1745811451080,8.8145,148.76,148.71,32.4619]
[1745811451678,8.8145,148.76,148.71,25.74]
[1745811451883,6.7202,148.76,148.71,25.74]
[1745811452082,6.7205,148.75,148.71,25.74]
[1745811453476,6.721,148.74,148.71,25.74]
[1745811453785,2.0961,148.79,148.71,25.74]
[1745811453983,6.7217,148.73,148.71,25.74]
[1745811454182,2.0961,148.79,148.71,25.74]
[1745811454485,11.53602477,148.77,148.68,25.74]
[1745811454687,25.74,148.76,148.68,25.74]
[1745811455486,11.53602477,148.77,148.68,25.74]
[1745811455786,11.53602477,148.77,148.66,27.7111]
[1745811456185,6.7228,148.7,148.66,27.7111]
[1745811457596,13.56832477,148.74,148.66,27.7111]
[1745811457785,11.53602477,148.71,148.62,27.6737]
[1745811457985,11.53602477,148.65,148.54,11.53602477]
[1745811458285,6.7273,148.6,148.55,6.7292]
[1745811458691,6.7273,148.6,148.54,37.17602477]
[1745811459291,6.7269,148.61,148.56,6.7291]
[1745811459695,2.0323,148.64,148.56,6.7291]
[1745811459894,2.0323,148.64,148.54,37.17602477]
[1745811460395,6.7264,148.62,148.57,6.7283]
[1745811460599,6.7264,148.62,148.57,32.3883]
[1745811463095,6.7269,148.61,148.57,25.66]
[1745811464596,6.7276,148.6,148.57,25.66]
[1745811464799,13.56832477,148.64,148.56,25.66]
[1745811464996,1.9993,148.63,148.52,2.0337]
[1745811465295,1.9993,148.63,148.53,25.66]
[1745811465596,6.7282,148.58,148.53,32.3901]
[1745811465896,4.0044,148.63,148.53,25.66]
[1745811466498,6.7281,148.59,148.54,6.7297]
[1745811466795,2.0323,148.64,148.57,11.53602477]
[1745811467000,6.7258,148.64,148.59,6.7273]
[1745811467300,25.66,148.67,148.58,25.66]
[1745811467803,6.7262,148.63,148.58,32.3881]
[1745811468100,25.66,148.67,148.55,25.66]
[1745811468299,11.53602477,148.65,148.55,32.3894]
[1745811468489,11.53602477,148.65,148.55,25.66]
[1745811468897,11.53602477,148.65,148.55,32.3892]
[1745811469399,6.7276,148.6,148.55,32.3892]
[1745811469605,11.53602477,148.65,148.55,32.3892]
[1745811469797,11.53602477,148.65,148.54,11.53602477]
[1745811470198,25.66,148.66,148.54,11.53602477]
[1745811470393,6.7267,148.62,148.54,11.53602477]
[1745811470601,25.66,148.66,148.54,11.53602477]
[1745811471000,25.66,148.66,148.52,39.22972477]
[1745811471397,25.66,148.66,148.54,6.7299]
[1745811471598,25.66,148.66,148.52,39.22972477]
[1745811472006,6.7282,148.58,148.52,39.22972477]
[1745811472698,6.7282,148.58,148.53,6.7301]
[1745811473005,6.7282,148.58,148.52,39.22972477]
[1745811474304,6.7282,148.58,148.54,6.7299]
[1745811474801,25.66,148.57,148.42,361.0]
[1745811475000,25.66,148.56,148.45,13.44822477]
[1745811475197,25.66,148.56,148.48,11.53602477]
[1745811475402,6.7297,148.55,148.49,6.7319]
[1745811475905,25.66,148.56,148.48,11.53602477]
[1745811476204,3.8605,148.58,148.48,11.53602477]
[1745811476405,25.66,148.57,148.48,11.53602477]
[1745811476904,25.66,148.57,148.47,25.66]
[1745811477097,25.66,148.57,148.44,37.19602477]
[1745811477098,37.19602477,148.57,148.44,37.19602477]
[1745811477399,37.19602477,148.57,148.44,39.28272477]
[1745811478007,6.7319,148.5,148.44,39.28272477]
[1745811478609,6.7319,148.5,148.44,46.01722477]
[1745811479209,6.7315,148.51,148.44,46.01722477]
[1745811479610,25.66,148.53,148.44,46.01722477]
[1745811480509,25.66,148.53,148.44,2.0867]
[1745811480711,25.66,148.53,148.42,25.66]
[1745811480910,1.9538,148.52,148.42,25.66]
[1745811481208,6.7336,148.46,148.42,25.66]
[1745811481810,6.7342,148.45,148.42,25.66]
[1745811485404,1.9938,148.5,148.42,25.66]
[1745811485611,25.68,148.54,148.42,25.66]
[1745811485811,25.68,148.54,148.46,11.53602477]
[1745811486111,25.68,148.54,148.47,25.68]
[1745811486412,25.68,148.54,148.47,27.6817]
[1745811486706,486.6201,148.57,148.47,27.6817]
[1745811486707,25.68,148.57,148.49,11.53602477]
[1745811487011,6.7298,148.55,148.5,6.7316]
[1745811487209,25.68,148.57,148.51,25.68]
[1745811489311,27.581,148.6,148.51,25.68]
[1745811489607,6.7287,148.57,148.51,25.68]
[1745811490403,27.581,148.6,148.51,25.68]
[1745811490608,27.581,148.6,148.47,13.53772477]
[1745811490803,11.53602477,148.57,148.48,25.48]
[1745811491003,25.48,148.56,148.48,25.48]
[1745811491404,2.101,148.6,148.49,6.7322]
[1745811491607,27.581,148.6,148.48,25.48]
[1745811491910,62.85237794,148.63,148.57,11.53602477]
[1745811492208,62.85237794,148.63,148.6,11.53602477]
[1745811492411,152.9790728,148.66,148.63,6.7259]
[1745811492716,152.9790728,148.66,148.61,25.48]
[1745811493516,152.9790728,148.66,148.58,29.6103]
[1745811493816,178.4390728,148.66,148.58,29.6103]
[1745811494018,178.4390728,148.66,148.58,27.5285]
[1745811494317,182.4282728,148.66,148.58,27.5285]
[1745811494518,11.53602477,148.65,148.55,25.46]
[1745811494712,13.44062477,148.65,148.55,25.46]
[1745811495017,11.53602477,148.62,148.52,25.46]
[1745811495318,25.46,148.61,148.52,25.46]
[1745811495617,6.729,148.57,148.52,25.46]
[1745811495915,25.46,148.61,148.52,25.46]
[1745811496518,25.46,148.61,148.49,27.4669]
[1745811496818,6.7293,148.56,148.49,27.4669]
[1745811497021,25.46,148.57,148.49,27.4669]
[1745811497218,25.46,148.57,148.49,25.46]
[1745811497419,6.7301,148.54,148.49,25.46]
[1745811497620,27.5415,148.57,148.49,25.46]
[1745811498320,27.5415,148.57,148.47,11.53602477]
[1745811499122,11.53602477,148.56,148.46,25.46]
[1745811499624,6.7317,148.51,148.46,25.46]
[1745811500021,25.48,148.53,148.46,25.46]
[1745811500517,11.53602477,148.5,148.41,510.02]
[1745811500723,27.4169,148.49,148.41,25.48]
[1745811500922,27.4169,148.49,148.37,41.00762477]
[1745811501119,4.1083,148.48,148.37,41.00762477]
[1745811501924,6.7344,148.45,148.39,6.7367]
[1745811502124,4.1083,148.48,148.37,41.00762477]
[1745811502525,11.53602477,148.47,148.37,27.5601]
[1745811502724,11.53602477,148.47,148.36,25.48]
[1745811504025,11.53602477,148.47,148.35,6.7382]
[1745811504220,11.53602477,148.44,148.34,1.9365]
[1745811504422,25.48,148.43,148.33,37.01602477]
[1745811504922,25.48,148.43,148.36,11.53602477]
[1745811505117,25.48,148.43,148.37,25.48]
[1745811505321,25.48,148.43,148.38,6.7368]
[1745811506025,25.48,148.43,148.39,6.7367]
[1745811506527,6.7344,148.45,148.39,6.7367]
[1745811506825,25.48,148.46,148.39,11.53602477]
[1745811507125,4.1083,148.48,148.39,11.53602477]
[1745811508029,1.17260551,148.55,148.45,11.53602477]
[1745811508222,1.17260551,148.55,148.45,37.01602477]
[1745811508223,25.48,148.54,148.45,37.01602477]
[1745811508622,6.7314,148.51,148.47,6.7331]
[1745811509229,6.7309,148.52,148.47,6.7331]
[1745811509830,3.9297,148.55,148.45,37.01602477]
[1745811510431,10.6596,148.55,148.49,6.7319]
[1745811510630,3.9297,148.55,148.49,6.7319]
[1745811511030,6.7304,148.54,148.49,6.7319]
[1745811511229,6.7304,148.54,148.48,6.7326]
[1745811511429,3.9297,148.55,148.45,37.01602477]
[1745811511932,3.9297,148.55,148.46,2.0165]
[1745811512327,10.6593,148.55,148.49,6.7318]
[1745811512528,10.6593,148.55,148.49,32.2118]
[1745811513033,6.7301,148.54,148.49,32.2118]
[1745811514529,6.7305,148.53,148.49,25.48]
[1745811514734,29.4097,148.55,148.46,25.48]
[1745811515235,6.7312,148.52,148.46,32.2133]
[1745811515435,29.4097,148.55,148.46,25.48]
[1745811516136,3.9297,148.55,148.46,25.48]
[1745811516337,10.6593,148.55,148.46,25.48]
[1745811516637,3.9297,148.55,148.46,25.48]
[1745811516834,6.7305,148.53,148.48,6.7326]
[1745811517136,3.9297,148.55,148.46,25.48]
[1745811518335,6.7301,148.54,148.49,6.7322]
[1745811519038,6.7305,148.53,148.48,6.7326]
[1745811519336,3.9297,148.55,148.46,25.48]
[1745811519733,6.7309,148.52,148.46,25.48]
[1745811520235,6.7305,148.53,148.48,6.7327]
[1745811520435,25.7,148.54,148.46,25.48]
[1745811520836,32.4304,148.54,148.49,6.732]
[1745811522838,6.7305,148.53,148.49,6.732]
[1745811523033,25.7,148.54,148.46,25.48]
[1745811523338,26.8719934,148.61,148.48,11.53602477]
[1745811523538,6.7281,148.59,148.53,6.7301]
[1745811524440,13.48212477,148.6,148.49,2.0687]
[1745811524636,11.53602477,148.57,148.47,11.53602477]
[1745811524937,1.9977,148.56,148.47,37.23602477]
[1745811525238,1.9461,148.6,148.47,37.23602477]
[1745811525438,1.9461,148.6,148.52,11.53602477]
[1745811525637,6.7281,148.59,148.52,18.26662477]
[1745811525839,1.9461,148.6,148.52,11.53602477]
[1745811526838,6.7283,148.58,148.52,18.26692477]
[1745811527338,6.7283,148.58,148.51,25.7]
[1745811527339,1.9461,148.6,148.5,25.7]
[1745811527634,6.7289,148.57,148.5,32.4318]
[1745811527939,1.9461,148.6,148.5,37.23602477]
[1745811529040,1.9461,148.6,148.5,25.7]
[1745811529836,25.7,148.66,148.52,11.53602477]
[1745811530036,37.23602477,148.66,148.52,11.53602477]
[1745811530443,6.7274,148.6,148.54,6.7296]
[1745811530943,6.727,148.61,148.55,6.7295]
[1745811531442,6.727,148.61,148.54,6.7299]
[1745811531945,25.7,148.62,148.54,6.7299]
[1745811531946,6.2513,148.67,148.58,11.53602477]
[1745811532143,6.2513,148.67,148.59,25.7]
[1745811532341,6.7256,148.64,148.59,25.7]
[1745811533445,25.7,148.64,148.56,25.7]
[1745811533942,25.7,148.64,148.55,4.1492]
[1745811534243,11.53602477,148.62,148.53,25.7]
[1745811534433,6.7281,148.59,148.53,25.7]
[1745811535041,11.53602477,148.62,148.53,25.7]
[1745811535936,11.53602477,148.62,148.51,18.26712477]
[1745811536143,11.53602477,148.62,148.51,43.94712477]
[1745811536442,6.7289,148.57,148.51,43.94712477]
[1745811536942,6.7291,148.56,148.51,43.94712477]
[1745811538547,6.7297,148.55,148.51,43.94712477]
[1745811540453,11.53602477,148.59,148.48,25.68]
[1745811540644,11.53602477,148.56,148.48,25.68]
[1745811540945,25.68,148.55,148.48,11.53602477]
[1745811541350,6.7312,148.52,148.48,18.26872477]
[1745811541652,25.68,148.58,148.48,11.53602477]
[1745811541850,25.68,148.58,148.51,11.53602477]
[1745811542151,25.68,148.58,148.52,25.68]
[1745811542554,25.68,148.61,148.52,25.68]
[1745811543655,25.68,148.61,148.49,27.7707]
[1745811543953,6.7288,148.57,148.49,27.7707]
[1745811544159,25.68,148.61,148.51,11.53602477]
[1745811544358,6.7271,148.61,148.56,6.7287]
[1745811544655,25.68,148.64,148.55,25.68]
[1745811544854,25.68,148.64,148.55,27.7203]
[1745811545050,25.68,148.67,148.57,11.53602477]
[1745811545647,6.7247,148.66,148.61,6.7265]
[1745811545851,6.7247,148.66,148.61,25.68]
[1745811546052,6.7246,148.66,148.61,32.4065]
[1745811546752,25.68,148.67,148.57,11.53602477]
[1745811546953,25.68,148.67,148.58,25.68]
[1745811547150,25.68,148.67,148.58,32.408]
[1745811547653,25.68,148.67,148.58,25.68]
[1745811547855,25.68,148.67,148.56,3.8714]
[1745811548154,25.68,148.67,148.56,29.5514]
[1745811548748,25.68,148.67,148.56,3.8714]
[1745811548952,37.21602477,148.67,148.57,32.4286]
[1745811549153,37.21602477,148.67,148.57,25.7]
[1745811549553,6.7264,148.62,148.57,32.4286]
[1745811549854,37.21602477,148.67,148.57,32.4286]
[1745811550054,6.7258,148.64,148.57,25.7]
[1745811550260,25.68,148.67,148.57,37.23602477]
[1745811550553,6.7247,148.66,148.61,6.7264]
[1745811551053,32.4042,148.67,148.62,6.7264]
[1745811551553,25.68,148.67,148.62,6.7264]
[1745811551756,6.7247,148.66,148.61,6.7267]
[1745811552156,6.7255,148.64,148.57,39.22842477]
[1745811552351,25.68,148.67,148.57,13.52842477]
[1745811552557,25.68,148.67,148.58,25.7]
[1745811552857,6.7256,148.64,148.6,6.7272]
[1745811553052,25.68,148.67,148.58,25.7]
[1745811553250,6.7249,148.66,148.61,6.7267]
[1745811554952,25.68,148.67,148.61,6.7267]
[1745811555255,25.68,148.67,148.58,25.7]
[1745811555555,6.7257,148.64,148.58,25.7]
[1745811555760,25.68,148.67,148.59,6.7277]
[1745811556260,25.68,148.67,148.58,32.4281]
[1745811556460,11.53602477,148.64,148.55,2.0403]
[1745811556761,29.6593,148.63,148.55,2.0403]
[1745811556959,29.6593,148.63,148.54,25.7]
[1745811557160,2.0041,148.62,148.52,25.7]
[1745811557361,6.7286,148.58,148.52,25.7]
[1745811557860,2.0041,148.62,148.55,6.7295]
[1745811558259,6.7276,148.6,148.55,6.7295]
[1745811559060,6.7278,148.59,148.55,6.7295]
[1745811559262,6.7278,148.59,148.52,25.7]
[1745811559565,6.7282,148.58,148.52,25.7]
[1745811559762,2.0041,148.62,148.54,6.7297]
[1745811560063,2.0041,148.62,148.52,25.7]
[1745811560263,6.7274,148.6,148.53,6.29881916]
[1745811560564,6.7274,148.6,148.52,25.7]
[1745811560865,6.7274,148.6,148.53,6.29986357]
[1745811561059,6.7274,148.6,148.55,6.7293]
[1745811562765,6.7277,148.59,148.55,6.7293]
[1745811562966,2.0041,148.62,148.52,25.7]
[1745811563166,2.0041,148.62,148.53,6.30258447]
[1745811563367,2.0041,148.62,148.52,25.7]
[1745811563567,2.0041,148.62,148.53,6.30293207]
[1745811563767,2.0041,148.62,148.55,6.7293]
[1745811564167,25.7,148.63,148.56,25.7]
[1745811564371,25.7,148.66,148.57,11.53602477]
[1745811564567,27.6707,148.67,148.57,17.41992477]
[1745811564767,6.7253,148.65,148.6,6.727]
[1745811565063,6.7253,148.65,148.57,17.41992477]
[1745811565366,6.7248,148.66,148.61,6.7267]
[1745811565567,27.6707,148.67,148.57,17.41992477]
[1745811566171,6.7251,148.65,148.6,6.7273]
[1745811566469,27.6707,148.67,148.6,6.7273]
[1745811566771,6.7253,148.65,148.6,6.7273]
[1745811566971,6.7253,148.65,148.61,6.7268]
[1745811567171,27.6707,148.67,148.57,17.41992477]
[1745811567368,6.7256,148.64,148.57,17.41992477]
[1745811568072,6.7256,148.64,148.6,6.727]
[1745811568272,6.7251,148.65,148.57,17.41992477]
[1745811568772,6.7256,148.64,148.57,17.41992477]
[1745811569567,6.7256,148.64,148.6,6.727]
[1745811569871,2.1049,148.68,148.61,25.7]
[1745811570070,27.8049,148.68,148.61,25.7]
[1745811570271,6.7256,148.64,148.61,25.7]
[1745811570770,6.7246,148.66,148.61,25.7]
[1745811570978,27.6029,148.71,148.63,11.53602477]
[1745811571165,25.7,148.71,148.63,11.53602477]
[1745811571869,6.7225,148.71,148.66,6.7242]
[1745811572070,6.7225,148.71,148.66,25.7]
[1745811572771,2.0011,148.73,148.61,11.53602477]
[1745811572970,2.0011,148.73,148.62,32.00238786]
[1745811573171,2.0011,148.73,148.63,6.29882475]
[1745811573375,6.7231,148.7,148.65,6.7249]
[1745811574582,6.7221,148.72,148.66,25.7]
[1745811574775,1.9106,148.74,148.66,25.7]
[1745811574973,1.9106,148.74,148.67,11.53602477]
[1745811575276,8.6317,148.74,148.69,6.7229]
[1745811575471,8.6317,148.74,148.69,25.7]
[1745811575871,1.9106,148.74,148.7,6.7224]
[1745811576072,1.9058,148.76,148.69,25.7]
[1745811576276,2.0526,148.77,148.7,11.53602477]
[1745811576680,6.7188,148.79,148.74,6.7208]
[1745811576879,6.7188,148.79,148.74,32.4208]
[1745811577488,3.8623,148.8,148.74,25.7]
[1745811577489,6.7191,148.78,148.74,25.7]
[1745811578482,6.7188,148.79,148.74,25.7]
[1745811579081,3.8623,148.8,148.74,25.7]
[1745811579382,3.8623,148.8,148.7,11.53602477]
[1745811579586,3.8623,148.8,148.71,25.36]
[1745811581286,6.7202,148.76,148.71,32.082]
[1745811581581,3.8623,148.8,148.71,25.36]
[1745811581782,3.8623,148.8,148.72,25.36]
[1745811582583,6.7199,148.77,148.72,25.36]
[1745811582979,3.8623,148.8,148.72,25.36]
[1745811583282,6.7191,148.78,148.73,6.7211]
[1745811583684,6.7207,148.75,148.73,25.36]
[1745811585481,6.7207,148.75,148.7,13.91883038]
[1745811585783,6.7207,148.75,148.71,25.36]
[1745811585985,6.7207,148.75,148.71,32.0822]
[1745811587285,6.7207,148.75,148.71,25.36]
[1745811587482,6.7211,148.74,148.71,25.36]
[1745811587984,6.7207,148.75,148.71,32.0823]
[1745811588480,6.7187,148.79,148.74,13.91693038]
[1745811588787,2.056,148.82,148.76,7.19623038]
[1745811589787,2.056,148.82,148.75,25.36]
[1745811589986,6.7185,148.8,148.75,32.0804]
[1745811591288,6.7187,148.79,148.75,32.0804]
[1745811592794,2.056,148.82,148.75,25.36]
[1745811593391,6.7188,148.79,148.75,25.36]
[1745811593993,2.056,148.82,148.76,7.19623038]
[1745811594492,4.1905,148.84,148.76,7.19623038]
[1745811594694,4.1905,148.84,148.78,7.19623038]
[1745811594893,4.1905,148.84,148.79,25.34]
[1745811595089,6.717,148.83,148.79,25.34]
[1745811595293,4.1905,148.84,148.79,25.34]
[1745811595796,6.7171,148.83,148.79,25.34]
[1745811595994,4.1905,148.84,148.79,25.34]
[1745811596495,6.7177,148.82,148.79,25.34]
[1745811596696,4.1905,148.84,148.79,25.34]
[1745811596993,6.7179,148.81,148.79,25.34]